bitfinex/quotes_ETHUSD_20250602
["timestamp","ask_amount","ask_price","bid_price","bid_amount"]
[1748890242931,0.43992983,2542.2,2542.1,9.39421049]
[1748890243287,0.43992983,2542.2,2542.1,4.75095555]
[1748890245622,0.43992983,2542.2,2542.1,4.97217965]
[1748890245836,0.43992983,2542.2,2542.1,4.79028296]
[1748890246122,0.43992983,2542.2,2542.1,4.75095555]
[1748890247926,0.34621603,2542.2,2542.1,9.39421049]
[1748890250425,0.34621603,2542.2,2542.1,9.61540495]
[1748890250587,0.34621603,2542.2,2542.1,9.61540967]
[1748890250809,0.34621603,2542.2,2542.1,9.39421049]
[1748890252914,0.34621603,2542.2,2542.1,9.61540618]
[1748890255056,0.34621603,2542.2,2542.1,4.15495124]
[1748890255353,9.15311603,2542.2,2542.1,0.22119569]
[1748890255539,0.8069,2542.1,2541.8,3.93418614]
[1748890255742,14.00015494,2542.1,2542.0,3.9339103]
[1748890256139,8.8069,2542.1,2542.0,3.9339103]
[1748890258164,13.45015494,2542.1,2542.0,3.9339103]
[1748890258363,15.42007505,2542.1,2542.0,3.9339103]
[1748890258659,14.61317505,2542.1,2541.9,3.93397937]
[1748890258832,0.7616,2542.0,2541.9,3.93397937]
[1748890260762,4.8546,2542.0,2541.9,3.93397937]
[1748890260965,8.0,2542.1,2542.0,3.9339103]
[1748890261261,12.093,2542.1,2542.0,3.9339103]
[1748890261569,12.4595044,2542.1,2542.0,3.9339103]
[1748890261760,12.4595082,2542.1,2542.0,3.9339103]
[1748890262062,1.10401603,2542.2,2542.1,3.93375555]
[1748890262359,4.43921603,2542.2,2542.1,3.93375555]
[1748890263022,0.34621603,2542.2,2542.1,3.93375555]
[1748890263227,0.34621603,2542.2,2542.1,3.97308815]
[1748890263422,0.34621603,2542.2,2542.1,9.38571049]
[1748890263670,0.34621603,2542.2,2542.1,4.74245555]
[1748890264865,0.34621603,2542.2,2542.1,3.93375555]
[1748890265524,0.34621603,2542.2,2542.1,3.88375555]
[1748890267988,0.34621603,2542.2,2542.1,3.92308765]
[1748890268188,0.34621603,2542.2,2542.1,3.92308782]
[1748890268392,0.34621603,2542.2,2542.1,3.88375555]
[1748890269585,4.43921603,2542.2,2542.1,3.88375555]
[1748890270588,0.34621603,2542.2,2542.1,3.88375555]
[1748890274244,0.34621603,2542.2,2542.1,4.7211867]
[1748890274658,0.34621603,2542.2,2542.1,4.68185555]
[1748890277669,0.34621603,2542.2,2542.1,4.72118124]
[1748890278898,0.34621603,2542.2,2542.1,4.68185555]
[1748890281595,0.34621603,2542.2,2542.1,9.43185555]
[1748890282775,0.34621603,2542.2,2542.1,17.43185555]
[1748890282983,0.34621603,2542.2,2542.1,18.38194047]
[1748890283718,0.34621603,2542.2,2542.1,17.83194047]
[1748890284099,0.34621603,2542.2,2542.1,3.88375555]
[1748890284434,1.14971603,2542.2,2542.1,3.88375555]
[1748890284615,1.6957807,2542.2,2542.1,3.88375555]
[1748890285434,1.14971603,2542.2,2542.1,3.88375555]
[1748890286331,0.34621603,2542.2,2542.1,3.88375555]
[1748890291233,1.16581603,2542.2,2542.1,3.88375555]
[1748890292104,0.34621603,2542.2,2542.1,3.88375555]
[1748890293938,0.34621603,2542.2,2542.1,3.92308361]
[1748890294924,0.34621603,2542.2,2542.1,3.88375555]
[1748890295347,0.34621603,2542.2,2542.1,12.70048056]
[1748890295499,0.34621603,2542.2,2542.1,21.50215555]
[1748890301226,0.34621603,2542.2,2542.1,22.05215555]
[1748890302154,0.02,2542.9,2542.8,3.93267264]
[1748890302317,0.02,2542.9,2542.8,27.94538134]
[1748890302512,0.02,2542.9,2542.8,27.90607582]
[1748890302834,0.02,2543.9,2543.8,3.93112666]
[1748890304039,0.02,2543.9,2543.8,4.15116121]
[1748890304248,0.02,2543.9,2543.8,3.93112666]
[1748890305757,0.02,2543.9,2543.8,4.15075327]
[1748890307067,0.02,2543.9,2543.8,4.15116166]
[1748890308129,0.02,2543.9,2543.8,4.3707874]
[1748890308463,0.02,2543.9,2543.8,12.41008832]
[1748890308664,0.02,2543.9,2543.8,12.15116166]
[1748890310477,0.02,2543.9,2543.8,12.37075216]
[1748890310619,0.02,2543.9,2543.8,12.15116166]
[1748890311037,0.02,2543.9,2543.8,12.36904496]
[1748890311244,0.02,2543.9,2543.8,12.15116166]
[1748890311443,0.02,2543.9,2543.8,12.36904139]
[1748890311779,0.02,2543.9,2543.8,4.36904139]
[1748890313737,1.3962,2543.9,2543.8,4.36904139]
[1748890314072,1.94462,2543.9,2543.8,4.36904139]
[1748890314735,19.39742318,2543.9,2543.8,0.43791473]
[1748890317664,19.39742318,2543.9,2543.8,4.36904139]
[1748890318104,23.49442318,2543.9,2543.8,4.36904139]
[1748890318745,1.3786,2543.8,2543.3,3.93182321]
[1748890318951,0.8286,2543.2,2543.1,3.93220872]
[1748890319189,4.9296,2543.2,2543.1,3.93220872]
[1748890320849,5.4796,2543.2,2543.1,3.93220872]
[1748890321984,4.9266,2543.2,2543.1,3.93220872]
[1748890323056,0.8286,2543.2,2543.1,3.93220872]
[1748890323252,1.9136,2543.4,2543.3,3.9318995]
[1748890323487,6.0106,2543.4,2543.3,3.9318995]
[1748890325489,7.16166,2543.4,2543.3,3.9318995]
[1748890327510,16.61446318,2543.4,2543.3,3.9318995]
[1748890327800,0.55,2543.1,2542.9,3.93240717]
[1748890328006,5.4746,2543.0,2542.9,3.93240717]
[1748890330126,0.8286,2543.0,2542.9,3.93240717]
[1748890330419,0.8286,2543.0,2542.6,3.93297045]
[1748890330420,0.38716347,2543.5,2543.4,3.9317449]
[1748890330620,6.37366014,2543.5,2543.4,3.9317449]
[1748890330915,7.36509667,2543.5,2543.4,3.9317449]
[1748890332321,3.27109667,2543.5,2543.4,3.9317449]
[1748890332477,7.36309667,2543.5,2543.4,3.9317449]
[1748890334617,7.76419446,2543.5,2543.4,3.9317449]
[1748890336147,7.76419446,2543.5,2543.3,3.93188776]
[1748890336148,8.55,2543.4,2543.1,3.93205976]
[1748890336269,8.55,2543.4,2542.3,3.93336045]
[1748890336270,0.55,2543.2,2543.0,3.93226287]
[1748890336612,0.55,2543.2,2543.1,3.93220872]
[1748890337272,12.64,2543.2,2543.1,3.93220872]
[1748890341914,9.085,2543.4,2543.3,3.9318995]
[1748890342118,0.7842,2543.7,2543.6,3.93143576]
[1748890342286,0.8042,2543.9,2543.8,3.93112666]
[1748890342480,5.4442,2543.9,2543.8,3.93112666]
[1748890342677,13.59575336,2543.9,2543.8,3.93112666]
[1748890343029,8.0,2543.8,2543.7,3.93113315]
[1748890343180,8.55,2543.8,2543.7,3.93113315]
[1748890343924,8.93713203,2543.8,2543.7,3.93113315]
[1748890344514,0.02,2543.9,2543.8,3.93112666]
[1748890344809,4.11,2543.9,2543.8,3.93112666]
[1748890345788,4.66,2543.9,2543.8,3.93112666]
[1748890346116,6.03704239,2543.9,2543.8,3.93112666]
[1748890346618,4.66,2543.9,2543.8,3.93112666]
[1748890347544,4.66,2543.9,2543.5,3.93159032]
[1748890347545,0.55,2543.6,2543.5,3.93159032]
[1748890347716,4.64,2543.6,2543.5,3.93159032]
[1748890349835,14.09280318,2543.6,2543.2,3.93193763]
[1748890349996,10.00280318,2543.3,2543.2,3.93194007]
[1748890350197,15.2784635,2543.3,2543.2,3.93194007]
[1748890351435,23.2784635,2543.3,2543.2,3.93194007]
[1748890351844,13.82566032,2543.3,2543.2,3.93194007]
[1748890352340,13.82566032,2543.3,2543.2,3.9320541]
[1748890353399,9.73666032,2543.3,2543.2,3.9320541]
[1748890353640,13.82666032,2543.3,2543.2,3.9320541]
[1748890356343,9.73666032,2543.3,2543.2,3.9320541]
[1748890356514,13.82666032,2543.3,2543.2,3.9320541]
[1748890357613,12.09,2543.3,2543.2,3.9320541]
[1748890357840,8.0,2543.3,2543.2,3.9320541]
[1748890358149,12.09,2543.3,2543.2,3.9320541]
[1748890358466,1.8638,2543.5,2543.4,3.9317449]
[1748890358746,5.175,2543.5,2543.4,3.9317449]
[1748890358900,5.6925,2543.5,2543.4,3.9317449]
[1748890359099,6.2425,2543.5,2543.4,3.9317449]
[1748890359301,6.2425,2543.5,2543.3,3.93186474]
[1748890359302,15.69530318,2543.5,2543.3,3.93176318]
[1748890359557,0.8285,2543.4,2543.3,3.93176318]
[1748890360244,0.55,2543.3,2542.7,3.9328273]
[1748890360456,0.55,2543.1,2543.0,3.93236335]
[1748890366157,1.014,2543.1,2543.0,3.93236335]
[1748890366654,9.014,2543.1,2542.6,4.71966079]
[1748890366856,4.64,2543.0,2542.9,3.93240628]
[1748890367834,5.4047,2543.0,2542.9,3.93240628]
[1748890368039,0.55,2542.9,2542.8,3.93258623]
[1748890368440,11.38967318,2542.9,2542.8,3.93258623]
[1748890370642,20.14357318,2542.9,2541.9,0.7985]
[1748890370843,20.14357318,2542.9,2542.5,3.93313667]
[1748890370844,10.00280318,2542.6,2542.5,3.93313667]
[1748890371073,11.5206835,2542.6,2542.5,3.93313667]
[1748890371345,0.55,2542.6,2542.5,3.93313667]
[1748890371513,4.64,2542.6,2542.5,3.93313667]
[1748890371714,1.3039,2542.9,2542.8,3.93267264]
[1748890372014,14.4799,2542.9,2542.8,3.93267264]
[1748890373957,13.3939,2542.9,2542.8,3.93267264]
[1748890374452,12.64,2542.9,2542.8,3.93267264]
[1748890375368,5.19072526,2542.9,2542.8,3.93267264]
[1748890375676,4.64,2542.9,2542.8,3.93267264]
[1748890375838,0.55,2542.9,2542.8,3.93267264]
[1748890376030,4.64,2542.9,2542.8,3.93267264]
[1748890376666,1.086,2543.0,2542.9,3.93251799]
[1748890376824,5.176,2543.0,2542.9,3.93251799]
[1748890377326,13.19072526,2543.1,2543.0,3.93236335]
[1748890377526,17.28072526,2543.1,2543.0,3.93236335]
[1748890379229,1.085,2543.4,2543.2,3.9320541]
[1748890379424,4.64,2543.3,2543.2,3.9320541]
[1748890379874,0.55,2543.3,2543.2,3.9320541]
[1748890380166,4.64,2543.3,2543.2,3.9320541]
[1748890382157,0.55,2543.3,2543.2,3.9320541]
[1748890382342,4.639,2543.3,2543.2,3.9320541]
[1748890383476,0.55,2543.3,2543.2,3.9320541]
[1748890383767,4.639,2543.3,2543.2,3.9320541]
[1748890384478,0.55,2543.3,2543.2,3.9320541]
[1748890384680,4.639,2543.3,2543.2,3.9320541]
[1748890385537,0.55,2543.3,2543.2,3.9320541]
[1748890385738,4.639,2543.3,2543.2,3.9320541]
[1748890387453,6.27572526,2543.4,2543.3,3.9318995]
[1748890387649,1.085,2543.4,2543.3,3.9318995]
[1748890387965,5.174,2543.4,2543.3,3.9318995]
[1748890388384,9.81472526,2543.4,2543.3,3.9318995]
[1748890389179,0.02,2543.9,2543.6,3.93143576]
[1748890389362,9.32369309,2543.9,2543.8,3.93112666]
[1748890389582,18.05341835,2543.9,2543.8,3.93112666]
[1748890389756,18.60341835,2543.9,2543.8,3.93112666]
[1748890390292,18.60341835,2543.9,2543.7,3.93123722]
[1748890390293,8.55,2543.8,2543.7,3.93123722]
[1748890390790,13.723,2543.8,2543.6,3.93136739]
[1748890390996,0.7971,2543.6,2543.5,3.93148864]
[1748890391288,9.52582526,2543.6,2543.5,3.93148864]
[1748890391793,17.52582526,2543.6,2543.5,3.93148864]
[1748890392103,8.55,2543.5,2543.4,3.9316602]
[1748890392397,5.19072526,2543.5,2543.4,3.9316602]
[1748890392597,6.38433197,2543.5,2543.4,3.9316602]
[1748890392791,6.38433197,2543.5,2543.3,3.93181615]
[1748890392997,4.088,2543.4,2543.3,3.93181615]
[1748890393364,4.088,2543.4,2542.2,3.93351119]
[1748890393365,1.3005,2543.3,2542.2,3.93351119]
[1748890393564,0.55,2542.5,2542.4,3.93329137]
[1748890393778,4.638,2542.5,2542.4,3.93329137]
[1748890395262,5.72572526,2543.2,2543.1,3.93220872]
[1748890395480,18.36372526,2543.2,2543.1,3.93220872]
[1748890396056,14.27572526,2543.2,2543.1,3.93220872]
[1748890396354,8.0,2543.3,2543.2,3.9320541]
[1748890396686,4.638,2543.3,2543.2,3.9320541]
[1748890397906,0.55,2543.3,2543.2,3.9320541]
[1748890398074,4.638,2543.3,2543.2,3.9320541]
[1748890399902,8.8263,2543.8,2543.7,3.9312812]
[1748890400056,16.10619863,2543.8,2543.7,3.9312812]
[1748890400260,20.19419863,2543.8,2543.6,3.93136196]
[1748890400671,20.19419863,2543.8,2543.5,3.93152551]
[1748890400885,5.19072526,2543.6,2543.5,3.93152551]
[1748890401131,9.27872526,2543.6,2543.5,3.93152551]
[1748890401267,19.29814512,2543.6,2543.5,3.93152551]
[1748890402283,13.19072526,2543.6,2543.5,3.93152551]
[1748890402463,17.27872526,2543.6,2543.5,3.93152551]
[1748890415110,8.55,2543.6,2543.5,3.93152551]
[1748890415271,17.27772526,2543.6,2543.5,3.93152551]
[1748890420018,18.36172526,2543.6,2543.5,3.93152551]
[1748890420205,20.38094512,2543.6,2543.5,3.93152551]
[1748890428096,12.38094512,2543.6,2543.5,3.93152551]
[1748890428851,0.55,2543.5,2543.2,3.93196039]
[1748890429014,0.55,2543.5,2542.8,0.8132]
[1748890429015,5.4526,2543.4,2543.3,3.93189826]
[1748890429340,11.00390725,2543.4,2543.2,3.93197314]
[1748890430946,0.55,2543.3,2543.1,3.93213235]
[1748890431106,4.635,2543.2,2543.1,3.93213235]
[1748890431295,0.55,2543.1,2542.9,3.93251344]
[1748890431517,9.27572526,2543.0,2542.9,3.93251344]
[1748890431842,10.66737031,2543.0,2542.9,3.93251344]
[1748890432856,0.55,2542.9,2542.2,0.7526]
[1748890433156,9.3738,2542.7,2542.5,3.93309802]
[1748890433307,12.635,2542.6,2542.5,3.93309802]
[1748890433512,14.08928,2542.6,2542.5,3.93309802]
[1748890434513,18.73000526,2542.6,2542.5,3.93309802]
[1748890434715,0.55,2542.5,2542.4,3.93321948]
[1748890435658,0.55,2542.5,2541.9,3.93405261]
[1748890435659,8.55,2542.5,2541.8,0.7543]
[1748890435962,5.19072526,2541.9,2541.8,3.93421984]
[1748890436160,9.27572526,2541.9,2541.8,3.93421984]
[1748890441632,0.55,2541.9,2541.8,3.93421984]
[1748890441932,4.636,2541.9,2541.8,4.73421984]
[1748890443468,0.55,2541.9,2541.8,4.73421984]
[1748890443672,4.636,2541.9,2541.8,4.73421984]
[1748890444166,1.083,2542.1,2542.0,3.9339103]
[1748890444469,13.19072526,2542.3,2542.2,3.93360081]
[1748890444676,18.35972526,2542.3,2542.2,3.93360081]
[1748890444974,12.636,2542.3,2542.2,3.93360081]
[1748890445132,8.55,2542.3,2542.2,3.93360081]
[1748890445329,7.079,2542.9,2542.8,3.93267264]
[1748890445572,0.84706451,2542.9,2542.8,3.93267264]
[1748890445876,4.64072526,2543.1,2543.0,3.93236335]
[1748890446046,16.72672526,2543.1,2543.0,3.93236335]
[1748890446448,12.64072526,2543.1,2543.0,3.93236335]
[1748890446749,18.35972526,2543.1,2543.0,3.93236335]
[1748890447053,17.80972526,2543.1,2543.0,3.93236335]
[1748890447236,18.35972526,2543.1,2543.0,3.93236335]
[1748890447831,18.57973583,2543.1,2543.0,3.93236335]
[1748890448155,18.35972526,2543.1,2543.0,3.93236335]
[1748890448358,18.57973151,2543.1,2543.0,3.93236335]
[1748890449553,19.0197345,2543.1,2543.0,3.93236335]
[1748890449734,18.79972912,2543.1,2543.0,3.93236335]
[1748890449936,17.71572912,2543.1,2543.0,3.93236335]
[1748890450773,18.79872912,2543.1,2543.0,3.93236335]
[1748890452790,13.63072912,2543.1,2543.0,3.93236335]
[1748890452989,18.79872912,2543.1,2543.0,3.93236335]
[1748890453783,19.01873103,2543.1,2543.0,3.93236335]
[1748890454006,14.29073429,2543.1,2543.0,3.93236335]
[1748890454165,19.67773712,2543.1,2543.0,3.93236335]
[1748890457007,19.67773712,2543.1,2543.0,3.93236335]
[1748890458165,22.04743609,2543.1,2543.0,3.93236335]
[1748890458592,22.26738185,2543.1,2543.0,3.93236335]
[1748890462186,22.48723709,2543.1,2543.0,3.93236335]
[1748890462388,22.26738185,2543.1,2543.0,3.93236335]
[1748890463339,22.26638185,2543.1,2543.0,3.93236335]
[1748890463627,0.55,2543.0,2542.8,3.93259166]
[1748890463834,0.55,2542.8,2542.3,0.7927]
[1748890464140,0.55,2542.6,2542.5,3.9330182]
[1748890465628,0.55,2542.8,2542.7,3.9328273]
[1748890465828,5.716,2542.8,2542.7,3.9328273]
[1748890466019,6.37009,2542.8,2542.7,3.9328273]
[1748890466430,1.20409,2542.8,2542.7,3.9328273]
[1748890466603,5.716,2542.8,2542.7,3.9328273]
[1748890466800,10.35672526,2542.8,2542.7,3.9328273]
[1748890467715,5.19072526,2542.8,2542.7,3.9328273]
[1748890467914,10.35672526,2542.8,2542.7,3.9328273]
[1748890468511,5.19072526,2542.8,2542.7,3.9328273]
[1748890468727,12.64072526,2543.0,2542.7,3.9328273]
[1748890468958,2.62095762,2543.1,2543.0,3.93236335]
[1748890468959,9.53995762,2543.1,2543.0,3.93236335]
[1748890469260,15.25395762,2543.1,2543.0,3.93236335]
[1748890469761,1.3389,2543.0,2542.9,3.93239523]
[1748890469918,5.97962526,2543.0,2542.7,3.93276635]
[1748890470118,5.19072526,2542.8,2542.7,3.93276635]
[1748890470863,5.19072526,2542.8,2542.7,3.9328273]
[1748890471041,6.19698779,2542.8,2542.7,3.9328273]
[1748890472538,5.19072526,2542.8,2542.7,3.9328273]
[1748890473040,6.19926677,2543.0,2542.9,3.93251799]
[1748890473219,19.36326677,2543.0,2542.9,3.93251799]
[1748890473422,19.14362526,2543.0,2542.9,3.93251799]
[1748890474234,13.97962526,2543.0,2542.9,3.93251799]
[1748890474567,19.14362526,2543.0,2542.9,3.93251799]
[1748890475759,21.1239029,2543.0,2542.9,3.93251799]
[1748890477467,20.3350029,2543.0,2542.9,3.93251799]
[1748890478264,15.1710029,2543.0,2542.9,3.93251799]
[1748890478564,18.35372526,2543.0,2542.9,3.93251799]
[1748890479365,8.55,2543.0,2542.9,3.93251799]
[1748890479570,18.35372526,2543.0,2542.9,3.93251799]
[1748890482061,13.19072526,2543.0,2542.9,3.93251799]
[1748890482257,17.27272526,2543.0,2542.9,3.93251799]
[1748890482463,0.55,2543.0,2542.9,3.93251799]
[1748890482666,4.632,2543.0,2542.9,3.93251799]
[1748890482887,0.55,2543.0,2542.9,3.93251799]
[1748890483090,4.632,2543.0,2542.9,3.93251799]
[1748890484283,0.55,2543.0,2542.9,3.93251799]
[1748890484462,4.631,2543.0,2542.9,3.93251799]
[1748890487163,0.55,2543.0,2542.9,3.93251799]
[1748890487364,4.631,2543.0,2542.9,3.93251799]
[1748890488398,0.55,2543.0,2542.9,3.93251799]
[1748890488573,4.631,2543.0,2542.9,3.93251799]
[1748890499917,2.61895762,2543.1,2543.0,3.93236335]
[1748890500267,7.24895762,2543.1,2543.0,3.93236335]
[1748890502137,7.24795762,2543.1,2543.0,3.93236335]
[1748890502906,1.53995762,2543.1,2543.0,4.75116335]
[1748890503345,5.61895762,2543.1,2543.0,4.75116335]
[1748890507266,6.16895762,2543.1,2543.0,4.75116335]
[1748890507467,6.16895762,2543.1,2543.0,3.93236335]
[1748890510204,10.80968288,2543.1,2543.0,3.93236335]
[1748890510344,11.89065117,2543.1,2543.0,3.93236335]
[1748890512193,8.55,2543.0,2542.7,3.93267522]
[1748890512362,0.55,2542.8,2542.7,3.93267522]
[1748890512567,1.629,2542.8,2542.7,3.93267522]
[1748890512978,1.629,2542.8,2542.1,8.68374063]
[1748890512979,0.55,2542.6,2542.0,0.75]
[1748890513180,1.3515,2542.4,2542.2,3.93349846]
[1748890513392,0.55,2542.0,2541.9,3.93406506]
[1748890513599,4.628,2542.0,2541.9,3.93406506]
[1748890514386,10.03672526,2542.0,2541.9,3.93406506]
[1748890516702,11.14829779,2542.0,2541.9,3.93406506]
[1748890517263,11.14829779,2542.0,2541.8,3.93414394]
[1748890517609,0.55,2541.8,2541.0,0.7626]
[1748890517781,5.19072526,2541.2,2541.1,3.95526995]
[1748890517980,10.34772526,2541.2,2541.1,3.95526995]
[1748890521318,0.8136,2541.8,2541.2,3.93510477]
[1748890521517,13.158,2541.7,2541.6,3.93452943]
[1748890521681,0.55,2541.6,2541.4,3.93476274]
[1748890521874,10.55359779,2541.5,2541.4,3.93476274]
[1748890522070,0.8136,2541.4,2541.1,0.02]
[1748890522298,9.26872526,2541.3,2541.1,3.95522587]
[1748890522520,0.55,2541.2,2541.1,3.95522587]
[1748890522693,8.55,2541.2,2541.1,0.02]
[1748890523012,9.55823253,2541.2,2541.1,3.9553036]
[1748890523380,9.55823253,2541.2,2541.1,0.02]
[1748890523579,10.38773253,2541.2,2541.1,0.02]
[1748890523890,10.38773253,2541.2,2541.1,3.9553036]
[1748890524193,10.38773253,2541.2,2541.1,0.02]
[1748890524392,10.38773253,2541.2,2541.1,3.9553036]
[1748890525114,10.38773253,2541.2,2541.1,0.02]
[1748890525796,10.38773253,2541.2,2541.1,3.9553036]
[1748890526001,9.3795,2541.2,2541.1,3.9553036]
[1748890526314,12.64072526,2541.5,2541.4,3.93483906]
[1748890526499,13.72072526,2541.5,2541.4,3.93483906]
[1748890526703,5.72072526,2541.5,2541.4,3.93483906]
[1748890526916,5.159,2541.5,2541.4,3.93483906]
[1748890527426,5.709,2541.5,2541.4,3.93483906]
[1748890527598,5.159,2541.5,2541.4,3.93483906]
[1748890527799,9.08,2541.6,2541.5,3.93468424]
[1748890528005,13.709,2541.6,2541.5,3.93468424]
[1748890528727,9.63,2541.6,2541.5,3.93468424]
[1748890529027,13.709,2541.6,2541.5,3.93468424]
[1748890531732,0.55,2541.6,2541.5,3.93468424]
[1748890531908,1.078,2541.7,2541.5,0.8222]
[1748890532095,4.629,2541.6,2541.5,4.75685318]
[1748890533631,4.629,2541.6,2541.5,3.93465318]
[1748890534499,0.55,2541.6,2541.5,3.93465318]
[1748890534726,5.706,2541.6,2541.5,3.93465318]
[1748890538847,10.34672526,2541.6,2541.5,3.93465318]
[1748890539042,11.46339779,2541.6,2541.5,3.93465318]
[1748890539402,11.46339779,2541.6,2541.5,3.93468424]
[1748890540539,19.46339779,2541.6,2541.5,3.93468424]
[1748890541654,14.82267253,2541.6,2541.5,3.93468424]
[1748890543863,0.8026,2542.2,2542.1,3.93375555]
[1748890544014,1.078,2542.2,2542.1,3.93375555]
[1748890544357,5.155,2542.2,2542.1,3.93375555]
[1748890544509,1.628,2542.2,2542.1,3.93375555]
[1748890544717,5.705,2542.2,2542.1,3.93375555]
[1748890546482,6.73957253,2542.2,2542.1,3.93375555]
[1748890547462,5.705,2542.2,2542.1,3.93375555]
[1748890550158,5.704,2542.2,2542.1,4.75135555]
[1748890550531,5.704,2542.2,2542.1,3.93375555]
[1748890555771,1.628,2542.2,2542.1,3.93375555]
[1748890555970,5.704,2542.2,2542.1,3.93375555]
[1748890556181,1.078,2542.2,2542.1,4.70215555]
[1748890556471,5.154,2542.2,2542.1,4.70215555]
[1748890557037,5.153,2542.2,2542.1,4.70215555]
[1748890557946,1.078,2542.6,2542.4,3.93326024]
[1748890558151,4.625,2542.5,2542.4,3.93326024]
[1748890558352,0.55,2542.5,2542.4,3.93326024]
[1748890558537,4.625,2542.5,2542.4,3.93326024]
[1748890559480,7.629,2542.9,2542.8,3.93267264]
[1748890559647,12.782,2542.9,2542.8,3.93267264]
[1748890560435,0.55,2542.6,2542.5,3.93311709]
[1748890560641,4.625,2542.6,2542.5,3.93311709]
[1748890561139,4.625,2542.6,2542.4,3.93326473]
[1748890561540,4.625,2542.6,2542.5,3.93313667]
[1748890561755,6.10916173,2542.6,2542.5,3.93313667]
[1748890561978,7.18516173,2542.6,2542.5,3.93313667]
[1748890562477,1.626,2542.6,2542.5,3.93313667]
[1748890562681,5.701,2542.6,2542.5,3.93313667]
[1748890563887,1.626,2542.6,2542.5,3.93313667]
[1748890564071,5.7,2542.6,2542.5,3.93313667]
[1748890565586,0.55,2542.6,2542.5,3.93313667]
[1748890565787,1.53995762,2543.1,2543.0,3.93236335]
[1748890566096,5.84626338,2543.1,2543.0,3.93236335]
[1748890566296,6.39626338,2543.1,2543.0,3.93236335]
[1748890566504,1.53995762,2543.1,2543.0,3.93236335]
[1748890567091,6.16395762,2543.1,2543.0,3.93236335]
[1748890567497,1.53995762,2543.1,2543.0,3.93236335]
[1748890567699,5.61395762,2543.1,2543.0,3.93236335]
[1748890569001,6.16395762,2543.1,2543.0,3.93236335]
[1748890570174,1.53995762,2543.1,2543.0,3.93236335]
[1748890570390,1.53995762,2543.1,2543.0,4.75626335]
[1748890571601,2.08995762,2543.1,2543.0,4.75626335]
[1748890571900,2.08995762,2543.1,2543.0,3.93236335]
[1748890572082,6.16295762,2543.1,2543.0,3.93236335]
[1748890573687,5.72295376,2543.1,2543.0,3.93236335]
[1748890578201,1.64995376,2543.1,2543.0,3.93236335]
[1748890578524,5.72195376,2543.1,2543.0,3.93236335]
[1748890579427,6.86565365,2543.1,2543.0,3.93236335]
[1748890579627,5.72195376,2543.1,2543.0,3.93236335]
[1748890580729,1.64995376,2543.1,2543.0,4.73246335]
[1748890581230,5.72095376,2543.1,2543.0,4.73246335]
[1748890581400,1.64995376,2543.1,2543.0,4.73246335]
[1748890581606,5.72095376,2543.1,2543.0,4.73246335]
[1748890583008,1.09995376,2543.1,2543.0,4.73246335]
[1748890583334,5.17095376,2543.1,2543.0,4.73246335]
[1748890583715,4.29100191,2543.1,2543.0,4.73246335]
[1748890584041,4.071,2543.1,2543.0,4.73246335]
[1748890584340,4.621,2543.1,2543.0,3.93236335]
[1748890585032,5.16594,2543.1,2543.0,3.93236335]
[1748890585230,0.55,2543.1,2543.0,3.93236335]
[1748890586123,4.621,2543.3,2543.2,4.7243541]
[1748890586303,1.076,2543.5,2543.2,4.7243541]
[1748890586304,1.076,2543.5,2543.4,3.9317449]
[1748890586508,5.697,2543.5,2543.4,3.9317449]
[1748890589413,6.5254,2543.5,2543.4,3.9317449]
[1748890589801,7.64184452,2543.5,2543.4,3.9317449]
[1748890593860,5.697,2543.5,2543.4,3.9317449]
[1748890598865,0.55,2543.5,2543.4,3.9317449]
[1748890599042,5.693,2543.5,2543.4,3.9317449]
[1748890601191,1.624,2543.5,2543.4,3.9317449]
[1748890601398,5.693,2543.5,2543.4,3.9317449]
[1748890602253,1.624,2543.5,2543.4,3.9317449]
[1748890602468,5.693,2543.5,2543.4,3.9317449]
[1748890602677,1.074,2543.5,2543.4,3.9317449]
[1748890602876,0.02,2543.9,2543.8,3.93112666]
[1748890603051,4.639,2543.9,2543.8,3.93112666]
[1748890603950,4.638,2543.9,2543.8,3.93112666]
[1748890605691,0.57,2543.9,2543.8,3.93112666]
[1748890605849,4.638,2543.9,2543.8,3.93112666]
[1748890613008,4.637,2543.9,2543.8,3.93112666]
[1748890613409,0.57,2543.9,2543.8,3.93112666]
[1748890613572,4.637,2543.9,2543.8,3.93112666]
[1748890614513,0.57,2543.9,2543.8,3.93112666]
[1748890614687,4.637,2543.9,2543.8,3.93112666]
[1748890615013,0.02,2543.9,2543.8,4.78043638]
[1748890615311,0.02,2543.9,2543.8,4.74112666]
[1748890615696,0.02,2543.9,2543.8,3.93112666]
[1748890616011,4.087,2543.9,2543.8,3.93112666]
[1748890617514,0.02,2543.9,2543.8,3.93112666]
[1748890617820,4.637,2543.9,2543.8,3.93112666]
[1748890620482,0.55,2543.8,2543.7,3.9312812]
[1748890620689,0.55,2543.8,2543.6,3.93135404]
[1748890621023,5.18904515,2543.7,2543.6,3.93135404]
[1748890621995,0.55,2543.7,2543.6,3.93135404]
[1748890622292,5.688,2543.7,2543.6,3.93135404]
[1748890622990,0.55,2543.7,2543.6,3.93135404]
[1748890623193,5.688,2543.7,2543.6,3.93135404]
[1748890624744,4.616,2543.7,2543.6,3.93135404]
[1748890627038,5.9441,2543.7,2543.6,3.93135404]
[1748890627625,0.55,2543.6,2543.5,3.93150047]
[1748890627828,5.18904515,2543.6,2543.5,3.93150047]
[1748890629657,5.688,2543.6,2543.5,3.93150047]
[1748890632518,0.837,2543.9,2543.8,3.93112666]
[1748890632716,7.07260451,2543.9,2543.8,3.93112666]
[1748890633428,0.55,2543.8,2543.0,0.8276]
[1748890633631,0.55,2543.4,2543.3,3.9318995]
[1748890633914,4.616,2543.4,2543.3,3.9318995]
[1748890637347,1.3317,2543.7,2543.6,3.93143576]
[1748890637548,6.4697,2543.7,2543.6,3.93143576]
[1748890637861,6.3697,2543.7,2543.6,3.93143576]
[1748890639660,0.55,2543.7,2543.6,3.93143576]
[1748890639864,5.688,2543.7,2543.6,3.93143576]
[1748890643364,1.622,2543.7,2543.6,3.93143576]
[1748890643698,5.137,2543.7,2543.6,3.93143576]
[1748890644366,5.687,2543.7,2543.6,3.93143576]
[1748890645107,5.687,2543.7,2543.6,4.37255446]
[1748890645403,5.687,2543.7,2543.6,4.59310212]